[Event "Early-Titled-Tuesday-Blitz-August-29-2023"]
[Site "Chess.com"]
[Date "2023.08.29"]
[Round "9"]
[White "ExchangeAB"]
[Black "nitpicker"]
[Result "1/2-1/2"]
[WhiteElo "2445"]
[BlackElo "2296"]
[TimeControl "180+1"]
[EndTime "9:43:17 PDT"]
[Termination "Game drawn - insufficient material"]

1. d4 {[%clk 0:03:00.9]} 1... Nf6 {[%clk 0:02:59.5]} 2. Nc3 {[%clk 0:03:01.1]}
2... d5 {[%clk 0:02:57.2]} 3. Bf4 {[%clk 0:03:01.4]} 3... a6 {[%clk 0:02:56.4]}
4. e3 {[%clk 0:03:01.8]} 4... e6 {[%clk 0:02:56.6]} 5. Bd3 {[%clk 0:03:00.5]}
5... Bd6 {[%clk 0:02:56.3]} 6. Qf3 {[%clk 0:02:59.8]} 6... c5 {[%clk 0:02:53.2]}
7. Bxd6 {[%clk 0:02:56.3]} 7... Qxd6 {[%clk 0:02:51.5]} 8. dxc5 {[%clk
0:02:56.3]} 8... Qxc5 {[%clk 0:02:50.7]} 9. Qg3 {[%clk 0:02:03.7]} 9... O-O
{[%clk 0:02:46.7]} 10. Nf3 {[%clk 0:01:59.9]} 10... b5 {[%clk 0:02:30.5]} 11.
O-O {[%clk 0:01:55.4]} 11... Nbd7 {[%clk 0:02:25.8]} 12. a3 {[%clk 0:01:53.4]}
12... Bb7 {[%clk 0:02:25.1]} 13. Rfe1 {[%clk 0:01:52.4]} 13... Nb6 {[%clk
0:02:11.5]} 14. Qh4 {[%clk 0:01:36.8]} 14... h6 {[%clk 0:02:05.1]} 15. Qb4
{[%clk 0:01:21.8]} 15... Rac8 {[%clk 0:01:58.6]} 16. Qxc5 {[%clk 0:01:21.3]}
16... Rxc5 {[%clk 0:01:58]} 17. Ne5 {[%clk 0:01:13.4]} 17... Rfc8 {[%clk
0:01:53]} 18. f4 {[%clk 0:01:10.4]} 18... Nc4 {[%clk 0:01:46.9]} 19. Bxc4 {[%clk
0:01:09.4]} 19... bxc4 {[%clk 0:01:47.8]} 20. h3 {[%clk 0:00:47]} 20... R5c7
{[%clk 0:01:47]} 21. Kf2 {[%clk 0:00:46.6]} 21... Nd7 {[%clk 0:01:43.7]} 22.
Nxd7 {[%clk 0:00:46.2]} 22... Rxd7 {[%clk 0:01:44.6]} 23. Ne2 {[%clk 0:00:45.8]}
23... f6 {[%clk 0:01:39.9]} 24. Red1 {[%clk 0:00:41.9]} 24... g6 {[%clk
0:01:29]} 25. Nd4 {[%clk 0:00:41.5]} 25... Kf7 {[%clk 0:01:27.7]} 26. Rac1
{[%clk 0:00:39.2]} 26... e5 {[%clk 0:01:25.4]} 27. Nf3 {[%clk 0:00:39.1]} 27...
Ke6 {[%clk 0:01:23.8]} 28. b4 {[%clk 0:00:36.7]} 28... cxb3 {[%clk 0:01:19.3]}
29. cxb3 {[%clk 0:00:36.9]} 29... Rdc7 {[%clk 0:01:19.9]} 30. Rxc7 {[%clk
0:00:36.9]} 30... Rxc7 {[%clk 0:01:20.2]} 31. fxe5 {[%clk 0:00:37]} 31... fxe5
{[%clk 0:01:18.9]} 32. Rd2 {[%clk 0:00:37.4]} 32... Rc3 {[%clk 0:01:18.5]} 33.
Rb2 {[%clk 0:00:37.7]} 33... g5 {[%clk 0:01:09.8]} 34. Ke2 {[%clk 0:00:37.7]}
34... d4 {[%clk 0:00:54.1]} 35. exd4 {[%clk 0:00:28.8]} 35... Bxf3+ {[%clk
0:00:53.8]} 36. gxf3 {[%clk 0:00:29.7]} 36... exd4 {[%clk 0:00:53.9]} 37. a4
{[%clk 0:00:24.5]} 37... Kf5 {[%clk 0:00:51.5]} 38. b4 {[%clk 0:00:24.2]} 38...
Kf4 {[%clk 0:00:51.1]} 39. b5 {[%clk 0:00:24.3]} 39... axb5 {[%clk 0:00:50.2]}
40. axb5 {[%clk 0:00:24.6]} 40... Re3+ {[%clk 0:00:49]} 41. Kd1 {[%clk
0:00:23.9]} 41... Kxf3 {[%clk 0:00:41]} 42. b6 {[%clk 0:00:24.3]} 42... Re8
{[%clk 0:00:40.5]} 43. b7 {[%clk 0:00:24.8]} 43... Rb8 {[%clk 0:00:40.4]} 44.
Kd2 {[%clk 0:00:18.5]} 44... Ke4 {[%clk 0:00:40.3]} 45. Rb6 {[%clk 0:00:17.7]}
45... h5 {[%clk 0:00:38.9]} 46. Rb5 {[%clk 0:00:18]} 46... Kf4 {[%clk
0:00:33.4]} 47. Kd3 {[%clk 0:00:17.3]} 47... g4 {[%clk 0:00:29.3]} 48. hxg4
{[%clk 0:00:17.7]} 48... hxg4 {[%clk 0:00:29.1]} 49. Kxd4 {[%clk 0:00:18.2]}
49... g3 {[%clk 0:00:28.9]} 50. Kc5 {[%clk 0:00:17.6]} 50... g2 {[%clk
0:00:26.8]} 51. Rb4+ {[%clk 0:00:17.5]} 51... Kf3 {[%clk 0:00:26.7]} 52. Rb3+
{[%clk 0:00:17.6]} 52... Kf2 {[%clk 0:00:26.1]} 53. Rb2+ {[%clk 0:00:18]} 53...
Kf3 {[%clk 0:00:25.3]} 54. Rxg2 {[%clk 0:00:18.9]} 54... Kxg2 {[%clk 0:00:25.2]}
55. Kc6 {[%clk 0:00:19.4]} 55... Rxb7 {[%clk 0:00:24.8]} 56. Kxb7 {[%clk
0:00:19.7]} 1/2-1/2

[Event "Early-Titled-Tuesday-Blitz-August-29-2023"]
[Site "Chess.com"]
[Date "2023.08.29"]
[Round "9"]
[White "noblerone"]
[Black "ViktoriyaTarasova"]
[Result "0-1"]
[WhiteElo "2542"]
[BlackElo "2432"]
[TimeControl "180+1"]
[EndTime "9:43:19 PDT"]
[Termination "ViktoriyaTarasova won by resignation"]

1. d4 {[%clk 0:03:00.9]} 1... Nf6 {[%clk 0:02:59.2]} 2. Nf3 {[%clk 0:02:58.2]}
2... e6 {[%clk 0:02:59.2]} 3. Bg5 {[%clk 0:02:58.6]} 3... d5 {[%clk 0:02:58.6]}
4. Nbd2 {[%clk 0:02:58.6]} 4... Be7 {[%clk 0:02:57.7]} 5. e3 {[%clk 0:02:59.2]}
5... c5 {[%clk 0:02:57.7]} 6. c3 {[%clk 0:02:59.3]} 6... O-O {[%clk 0:02:57.8]}
7. Bd3 {[%clk 0:02:59.7]} 7... h6 {[%clk 0:02:58.5]} 8. Bh4 {[%clk 0:02:59.7]}
8... b6 {[%clk 0:02:58.7]} 9. Ne5 {[%clk 0:02:58.2]} 9... Bb7 {[%clk 0:02:58.8]}
10. O-O {[%clk 0:02:57.7]} 10... Nbd7 {[%clk 0:02:59.2]} 11. f4 {[%clk
0:02:58.2]} 11... Ne4 {[%clk 0:02:59.1]} 12. Bxe7 {[%clk 0:02:57.9]} 12... Qxe7
{[%clk 0:02:59.3]} 13. Ndf3 {[%clk 0:02:58.2]} 13... Nxe5 {[%clk 0:02:46.5]} 14.
Nxe5 {[%clk 0:02:59.1]} 14... Nf6 {[%clk 0:02:44.4]} 15. Bc2 {[%clk 0:02:46.8]}
15... Ba6 {[%clk 0:02:39.7]} 16. Rf3 {[%clk 0:02:45.4]} 16... Nd7 {[%clk
0:02:33.4]} 17. Ng4 {[%clk 0:02:39.2]} 17... f5 {[%clk 0:02:30.3]} 18. Nf2
{[%clk 0:02:26.1]} 18... Nf6 {[%clk 0:02:27.1]} 19. h3 {[%clk 0:02:23.8]} 19...
Kh8 {[%clk 0:02:11.3]} 20. Kh2 {[%clk 0:02:15.9]} 20... g5 {[%clk 0:02:06.7]}
21. g4 {[%clk 0:01:57.3]} 21... fxg4 {[%clk 0:01:51]} 22. Nxg4 {[%clk 0:01:54]}
22... Nxg4+ {[%clk 0:01:46.5]} 23. hxg4 {[%clk 0:01:54.1]} 23... gxf4 {[%clk
0:01:47.2]} 24. Rh3 {[%clk 0:01:30.5]} 24... Kg7 {[%clk 0:01:39.9]} 25. Qe1
{[%clk 0:01:20]} 25... Qg5 {[%clk 0:01:07.3]} 26. exf4 {[%clk 0:01:04.6]} 26...
Qxf4+ {[%clk 0:00:58.1]} 27. Kh1 {[%clk 0:01:03.3]} 27... Rae8 {[%clk
0:00:45.7]} 28. Qh4 {[%clk 0:00:48.1]} 28... Bf1 {[%clk 0:00:37.5]} 29. Qh5
{[%clk 0:00:40.2]} 29... Qg5 {[%clk 0:00:15.1]} 30. Qxg5+ {[%clk 0:00:40.4]}
30... hxg5 {[%clk 0:00:15.6]} 31. Rh7+ {[%clk 0:00:40.6]} 31... Kg8 {[%clk
0:00:14.1]} 32. Kg1 {[%clk 0:00:30.7]} 32... Be2 {[%clk 0:00:12.2]} 33. Re1
{[%clk 0:00:26.6]} 33... Bxg4 {[%clk 0:00:09.7]} 34. Rxa7 {[%clk 0:00:23.1]}
34... Bf5 {[%clk 0:00:08.1]} 35. Ba4 {[%clk 0:00:20.4]} 35... Ra8 {[%clk
0:00:07.5]} 36. Rxa8 {[%clk 0:00:20.6]} 36... Rxa8 {[%clk 0:00:07.6]} 37. b3
{[%clk 0:00:20.8]} 37... Kg7 {[%clk 0:00:06.7]} 38. Re2 {[%clk 0:00:19.3]} 38...
Kf6 {[%clk 0:00:06.8]} 39. Kf2 {[%clk 0:00:19.6]} 39... Be4 {[%clk 0:00:06.5]}
40. Kg3 {[%clk 0:00:19.3]} 40... Rh8 {[%clk 0:00:05.2]} 41. Rg2 {[%clk
0:00:19.3]} 41... Bxg2 {[%clk 0:00:04.3]} 0-1

[Event "Early-Titled-Tuesday-Blitz-August-29-2023"]
[Site "Chess.com"]
[Date "2023.08.29"]
[Round "9"]
[White "BillieKimbah"]
[Black "sergoy"]
[Result "1-0"]
[WhiteElo "3044"]
[BlackElo "2950"]
[TimeControl "180+1"]
[EndTime "9:43:21 PDT"]
[Termination "BillieKimbah won by resignation"]

1. d4 {[%clk 0:03:00.9]} 1... Nf6 {[%clk 0:03:00.1]} 2. Nf3 {[%clk 0:03:01.2]}
2... d5 {[%clk 0:02:59.9]} 3. Bg5 {[%clk 0:03:01.7]} 3... Ne4 {[%clk 0:02:56.9]}
4. Bh4 {[%clk 0:03:01.9]} 4... f6 {[%clk 0:02:49.3]} 5. Nfd2 {[%clk 0:02:59]}
5... Bf5 {[%clk 0:02:45]} 6. Nxe4 {[%clk 0:02:47.1]} 6... Bxe4 {[%clk
0:02:45.3]} 7. Nc3 {[%clk 0:02:46.6]} 7... Bg6 {[%clk 0:02:43.7]} 8. e4 {[%clk
0:02:37.5]} 8... e6 {[%clk 0:02:35.5]} 9. Bb5+ {[%clk 0:02:16.7]} 9... c6 {[%clk
0:02:34.8]} 10. Bd3 {[%clk 0:02:17]} 10... Bb4 {[%clk 0:02:31.8]} 11. O-O {[%clk
0:02:10.9]} 11... O-O {[%clk 0:02:10.4]} 12. Qe2 {[%clk 0:02:01.1]} 12... Nd7
{[%clk 0:01:57.2]} 13. Nb1 {[%clk 0:01:44.7]} 13... Qe8 {[%clk 0:01:46.5]} 14.
c3 {[%clk 0:01:43.1]} 14... Bd6 {[%clk 0:01:46]} 15. Nd2 {[%clk 0:01:43.5]}
15... f5 {[%clk 0:01:46.2]} 16. e5 {[%clk 0:01:38]} 16... Bc7 {[%clk 0:01:39.3]}
17. b4 {[%clk 0:01:37.8]} 17... f4 {[%clk 0:01:38.1]} 18. f3 {[%clk 0:01:31]}
18... Bxd3 {[%clk 0:01:25.3]} 19. Qxd3 {[%clk 0:01:31.9]} 19... Qh5 {[%clk
0:01:24]} 20. Bf2 {[%clk 0:01:29.7]} 20... Qf5 {[%clk 0:01:16.2]} 21. Qe2 {[%clk
0:01:28]} 21... a5 {[%clk 0:01:02.8]} 22. a4 {[%clk 0:01:25.7]} 22... Rfc8
{[%clk 0:00:52.7]} 23. g4 {[%clk 0:01:19.3]} 23... Qg6 {[%clk 0:00:49.5]} 24. b5
{[%clk 0:01:05.5]} 24... c5 {[%clk 0:00:43.4]} 25. dxc5 {[%clk 0:00:57.3]} 25...
Bxe5 {[%clk 0:00:40.5]} 26. Rac1 {[%clk 0:00:55.4]} 26... Qf6 {[%clk 0:00:32.5]}
27. Nb3 {[%clk 0:00:39.6]} 27... Bxc3 {[%clk 0:00:30]} 28. h4 {[%clk 0:00:32.7]}
28... Bb4 {[%clk 0:00:25.2]} 29. c6 {[%clk 0:00:31]} 29... bxc6 {[%clk
0:00:23.7]} 30. bxc6 {[%clk 0:00:31.9]} 30... Nb8 {[%clk 0:00:21.4]} 31. Qb5
{[%clk 0:00:23.4]} 31... Na6 {[%clk 0:00:21.8]} 32. Nd4 {[%clk 0:00:21.3]} 32...
Nc7 {[%clk 0:00:21.2]} 33. Qd3 {[%clk 0:00:19.4]} 33... e5 {[%clk 0:00:21.3]}
34. Nf5 {[%clk 0:00:19.2]} 34... g6 {[%clk 0:00:19.7]} 35. Nh6+ {[%clk
0:00:18.5]} 35... Kg7 {[%clk 0:00:19]} 36. g5 {[%clk 0:00:18.9]} 36... Qe6
{[%clk 0:00:19.5]} 37. Rfe1 {[%clk 0:00:18.3]} 37... Ra6 {[%clk 0:00:16.7]} 38.
Rxe5 {[%clk 0:00:17.8]} 38... Qxe5 {[%clk 0:00:09.6]} 39. Bd4 {[%clk 0:00:18]}
39... Bd6 {[%clk 0:00:10.5]} 40. Bxe5+ {[%clk 0:00:16.9]} 40... Bxe5 {[%clk
0:00:10.9]} 41. Re1 {[%clk 0:00:17]} 41... Bb2 {[%clk 0:00:09]} 42. Re7+ {[%clk
0:00:15.4]} 42... Kh8 {[%clk 0:00:09.6]} 43. Rxc7 {[%clk 0:00:14.9]} 1-0

[Event "Early-Titled-Tuesday-Blitz-August-29-2023"]
[Site "Chess.com"]
[Date "2023.08.29"]
[Round "9"]
[White "YouJustFoundYourGodfather"]
[Black "FormerProdigy"]
[Result "1-0"]
[WhiteElo "2629"]
[BlackElo "2858"]
[TimeControl "180+1"]
[EndTime "9:43:21 PDT"]
[Termination "YouJustFoundYourGodfather won by resignation"]

1. d4 {[%clk 0:02:56.8]} 1... Nf6 {[%clk 0:02:59.7]} 2. c4 {[%clk 0:02:57.2]}
2... e6 {[%clk 0:03:00]} 3. Nc3 {[%clk 0:02:57.4]} 3... Bb4 {[%clk 0:03:00.4]}
4. Qb3 {[%clk 0:02:52.9]} 4... c5 {[%clk 0:02:55.1]} 5. dxc5 {[%clk 0:02:51.1]}
5... Nc6 {[%clk 0:02:50.4]} 6. Nf3 {[%clk 0:02:49.1]} 6... Ne4 {[%clk
0:02:43.1]} 7. e3 {[%clk 0:02:45.8]} 7... Bxc3+ {[%clk 0:02:30.3]} 8. bxc3
{[%clk 0:02:45.3]} 8... Nxc5 {[%clk 0:02:31.2]} 9. Qc2 {[%clk 0:02:43.8]} 9...
b6 {[%clk 0:02:28.9]} 10. Be2 {[%clk 0:02:42.2]} 10... Ba6 {[%clk 0:02:26.1]}
11. O-O {[%clk 0:02:39.5]} 11... Rc8 {[%clk 0:02:26.1]} 12. Rd1 {[%clk
0:02:38.3]} 12... Na5 {[%clk 0:02:19.8]} 13. Rd4 {[%clk 0:02:28.1]} 13... Qe7
{[%clk 0:02:14.5]} 14. Ba3 {[%clk 0:02:20.8]} 14... O-O {[%clk 0:02:00.7]} 15.
Rad1 {[%clk 0:02:17.5]} 15... Rfd8 {[%clk 0:02:01]} 16. Qd2 {[%clk 0:01:57.7]}
16... h6 {[%clk 0:01:31.1]} 17. Ne5 {[%clk 0:01:45.4]} 17... d6 {[%clk
0:00:54.3]} 18. Rxd6 {[%clk 0:01:42.6]} 18... Rxd6 {[%clk 0:00:55.2]} 19. Qxd6
{[%clk 0:01:43]} 19... Qxd6 {[%clk 0:00:56.1]} 20. Rxd6 {[%clk 0:01:42.7]} 20...
Ne4 {[%clk 0:00:57]} 21. Rd7 {[%clk 0:00:59.8]} 21... Nxc4 {[%clk 0:00:57]} 22.
Bxc4 {[%clk 0:00:39.4]} 22... Bxc4 {[%clk 0:00:57.9]} 23. Rd4 {[%clk 0:00:39.4]}
23... Bd5 {[%clk 0:00:53.6]} 24. c4 {[%clk 0:00:39.4]} 24... Nc3 {[%clk
0:00:38.7]} 25. Rd2 {[%clk 0:00:14.8]} 25... Bxc4 {[%clk 0:00:36.2]} 26. Rc2
{[%clk 0:00:15.3]} 26... Ba6 {[%clk 0:00:20.4]} 27. Kh1 {[%clk 0:00:10.2]} 27...
f6 {[%clk 0:00:17.1]} 28. Nf3 {[%clk 0:00:07]} 28... e5 {[%clk 0:00:10.6]} 29.
h3 {[%clk 0:00:07.4]} 29... Ne4 {[%clk 0:00:10.1]} 30. Rb2 {[%clk 0:00:03.9]}
30... Rc3 {[%clk 0:00:05.9]} 31. Bb4 {[%clk 0:00:03.3]} 31... Rc1+ {[%clk
0:00:06.3]} 32. Kh2 {[%clk 0:00:02.7]} 32... Bc4 {[%clk 0:00:06.3]} 33. a3
{[%clk 0:00:02.6]} 33... Kf7 {[%clk 0:00:04.2]} 34. Nd2 {[%clk 0:00:03.5]} 34...
Nxd2 {[%clk 0:00:03.5]} 35. Bxd2 {[%clk 0:00:04.4]} 35... Ke6 {[%clk 0:00:03.3]}
36. Bxc1 {[%clk 0:00:04.1]} 1-0

[Event "Early-Titled-Tuesday-Blitz-August-29-2023"]
[Site "Chess.com"]
[Date "2023.08.29"]
[Round "9"]
[White "leopato"]
[Black "ChainedDowntohell"]
[Result "0-1"]
[WhiteElo "2175"]
[BlackElo "2504"]
[TimeControl "180+1"]
[EndTime "9:43:21 PDT"]
[Termination "ChainedDowntohell won on time"]

1. d4 {[%clk 0:02:43.4]} 1... b6 {[%clk 0:02:56.7]} 2. e4 {[%clk 0:02:38.5]}
2... Bb7 {[%clk 0:02:56.6]} 3. Nc3 {[%clk 0:02:38.5]} 3... e6 {[%clk 0:02:56.8]}
4. Nf3 {[%clk 0:02:35.5]} 4... Bb4 {[%clk 0:02:56.3]} 5. Bd3 {[%clk 0:02:35.4]}
5... d5 {[%clk 0:02:55.6]} 6. e5 {[%clk 0:02:33.7]} 6... Ba6 {[%clk 0:02:49.4]}
7. Bxa6 {[%clk 0:02:29.9]} 7... Nxa6 {[%clk 0:02:50.3]} 8. O-O {[%clk
0:02:28.6]} 8... Ne7 {[%clk 0:02:38.6]} 9. Ne2 {[%clk 0:02:20.3]} 9... Nf5
{[%clk 0:02:37.8]} 10. c3 {[%clk 0:02:17.5]} 10... Qd7 {[%clk 0:02:18.9]} 11.
cxb4 {[%clk 0:02:14]} 11... Nxb4 {[%clk 0:02:19.8]} 12. g4 {[%clk 0:02:07.1]}
12... Ne7 {[%clk 0:02:19]} 13. a3 {[%clk 0:02:02.9]} 13... Nbc6 {[%clk
0:02:17.3]} 14. b4 {[%clk 0:01:59.8]} 14... h5 {[%clk 0:02:16.6]} 15. h3 {[%clk
0:01:59.7]} 15... f6 {[%clk 0:02:14]} 16. Bf4 {[%clk 0:01:49.1]} 16... Ng6
{[%clk 0:02:13.7]} 17. Qc2 {[%clk 0:01:44.6]} 17... Kf7 {[%clk 0:02:11.4]} 18.
Rac1 {[%clk 0:01:36.4]} 18... Nge7 {[%clk 0:02:09]} 19. b5 {[%clk 0:01:25.2]}
19... Na5 {[%clk 0:02:08.1]} 20. Qxc7 {[%clk 0:01:23.2]} 20... Qe8 {[%clk
0:02:08.4]} 21. exf6 {[%clk 0:01:17.2]} 21... gxf6 {[%clk 0:02:07.9]} 22. Bd6
{[%clk 0:01:16.6]} 22... Nc4 {[%clk 0:02:02.4]} 23. Bxe7 {[%clk 0:01:15]} 23...
Rc8 {[%clk 0:01:58.4]} 24. Qxa7 {[%clk 0:01:13.1]} 24... Ra8 {[%clk 0:01:58.6]}
25. Qb7 {[%clk 0:01:11]} 25... Rb8 {[%clk 0:01:58.6]} 26. Qc6 {[%clk 0:01:06.2]}
26... Qxe7 {[%clk 0:01:58.4]} 27. Rxc4 {[%clk 0:00:58.7]} 27... dxc4 {[%clk
0:01:55.4]} 28. d5 {[%clk 0:00:58]} 28... hxg4 {[%clk 0:01:27.3]} 29. dxe6+
{[%clk 0:00:56.6]} 29... Qxe6 {[%clk 0:01:23.9]} 30. Qxe6+ {[%clk 0:00:53.6]}
30... Kxe6 {[%clk 0:01:24.8]} 31. hxg4 {[%clk 0:00:51.6]} 31... Rbg8 {[%clk
0:01:24.9]} 32. Nf4+ {[%clk 0:00:50.9]} 32... Kf7 {[%clk 0:01:21.8]} 33. Nh2
{[%clk 0:00:46.6]} 33... Rd8 {[%clk 0:01:16.3]} 34. Rc1 {[%clk 0:00:39.3]} 34...
Rd4 {[%clk 0:01:16]} 35. Nh5 {[%clk 0:00:37.7]} 35... f5 {[%clk 0:01:09.1]} 36.
f3 {[%clk 0:00:33.3]} 36... Ra8 {[%clk 0:01:00.9]} 37. Rc3 {[%clk 0:00:32.3]}
37... Ra5 {[%clk 0:00:57.4]} 38. Ng3 {[%clk 0:00:29.4]} 38... fxg4 {[%clk
0:00:46.9]} 39. Nxg4 {[%clk 0:00:28.4]} 39... Rxb5 {[%clk 0:00:47]} 40. Ne4
{[%clk 0:00:26.3]} 40... Rb2 {[%clk 0:00:43.7]} 41. Ne5+ {[%clk 0:00:25]} 41...
Ke6 {[%clk 0:00:41.8]} 42. Nf2 {[%clk 0:00:12.5]} 42... Kxe5 {[%clk 0:00:40.7]}
43. f4+ {[%clk 0:00:06.9]} 43... Kxf4 {[%clk 0:00:38.6]} 44. Rxc4 {[%clk
0:00:03.9]} 44... Rb1+ {[%clk 0:00:35.5]} 45. Kg2 {[%clk 0:00:02.1]} 45... Rxc4
{[%clk 0:00:35.7]} 46. Nd3+ {[%clk 0:00:02.3]} 46... Ke3 {[%clk 0:00:35.6]} 0-1

[Event "Early-Titled-Tuesday-Blitz-August-29-2023"]
[Site "Chess.com"]
[Date "2023.08.29"]
[Round "9"]
[White "AnaKuchava"]
[Black "Inepton_Fermion"]
[Result "0-1"]
[WhiteElo "2207"]
[BlackElo "2380"]
[TimeControl "180+1"]
[EndTime "9:43:27 PDT"]
[Termination "Inepton_Fermion won on time"]

1. d4 {[%clk 0:03:00.9]} 1... Nf6 {[%clk 0:02:58.7]} 2. Nf3 {[%clk 0:03:00.4]}
2... e6 {[%clk 0:02:58.5]} 3. c4 {[%clk 0:02:58.9]} 3... b6 {[%clk 0:02:58]} 4.
a3 {[%clk 0:02:58]} 4... Bb7 {[%clk 0:02:57.4]} 5. Nc3 {[%clk 0:02:57.3]} 5...
Ne4 {[%clk 0:02:56.5]} 6. Qc2 {[%clk 0:02:52.2]} 6... Nxc3 {[%clk 0:02:46.3]} 7.
Qxc3 {[%clk 0:02:53.1]} 7... f5 {[%clk 0:02:43.8]} 8. g3 {[%clk 0:02:52.3]} 8...
Be7 {[%clk 0:02:38.5]} 9. Bg2 {[%clk 0:02:51.4]} 9... O-O {[%clk 0:02:30.7]} 10.
O-O {[%clk 0:02:50.6]} 10... a5 {[%clk 0:02:20]} 11. Bd2 {[%clk 0:02:33]} 11...
a4 {[%clk 0:02:14.2]} 12. Rfd1 {[%clk 0:02:15]} 12... Be4 {[%clk 0:02:13.3]} 13.
Ne1 {[%clk 0:02:07.1]} 13... Bxg2 {[%clk 0:02:13]} 14. Kxg2 {[%clk 0:02:03]}
14... Bf6 {[%clk 0:02:11.1]} 15. Qd3 {[%clk 0:01:41.7]} 15... Nc6 {[%clk
0:01:54]} 16. Bc3 {[%clk 0:01:38.7]} 16... d5 {[%clk 0:01:45.8]} 17. Nf3 {[%clk
0:01:23.6]} 17... Qd7 {[%clk 0:01:18.9]} 18. Rac1 {[%clk 0:01:16.2]} 18... Ne7
{[%clk 0:01:10.9]} 19. Bb4 {[%clk 0:01:11.6]} 19... Rfd8 {[%clk 0:01:03.7]} 20.
Bxe7 {[%clk 0:00:57.9]} 20... Qxe7 {[%clk 0:01:01.7]} 21. c5 {[%clk 0:00:29.3]}
21... bxc5 {[%clk 0:00:55]} 22. Rxc5 {[%clk 0:00:27.1]} 22... Rdb8 {[%clk
0:00:35]} 23. Qc2 {[%clk 0:00:21.3]} 23... Rb7 {[%clk 0:00:33.5]} 24. Rc1 {[%clk
0:00:20.7]} 24... Raa7 {[%clk 0:00:32.3]} 25. e3 {[%clk 0:00:17.6]} 25... g6
{[%clk 0:00:28.2]} 26. Ne1 {[%clk 0:00:16.9]} 26... Qd7 {[%clk 0:00:27.3]} 27.
Nd3 {[%clk 0:00:14.8]} 27... Be7 {[%clk 0:00:27.5]} 28. Rc6 {[%clk 0:00:14.7]}
28... Bd6 {[%clk 0:00:26.7]} 29. Ne5 {[%clk 0:00:07.7]} 29... Bxe5 {[%clk
0:00:26.8]} 30. dxe5 {[%clk 0:00:08.6]} 30... g5 {[%clk 0:00:19.3]} 31. Rd1
{[%clk 0:00:08.1]} 31... Qg7 {[%clk 0:00:14.9]} 32. Rd4 {[%clk 0:00:06.9]} 32...
Qxe5 {[%clk 0:00:12.6]} 33. Rxa4 {[%clk 0:00:06.9]} 33... Rxa4 {[%clk
0:00:08.2]} 34. Qxa4 {[%clk 0:00:07.8]} 34... Qxb2 {[%clk 0:00:05.1]} 35. Rxe6
{[%clk 0:00:07.1]} 35... Qb5 {[%clk 0:00:04.2]} 36. Qa8+ {[%clk 0:00:05.6]}
36... Rb8 {[%clk 0:00:04.4]} 37. Qa7 {[%clk 0:00:05]} 37... Qb7 {[%clk 0:00:04]}
38. Qc5 {[%clk 0:00:04.2]} 38... d4+ {[%clk 0:00:04.2]} 39. Kh3 {[%clk
0:00:02.6]} 39... Qf3 {[%clk 0:00:02.6]} 0-1

[Event "Early-Titled-Tuesday-Blitz-August-29-2023"]
[Site "Chess.com"]
[Date "2023.08.29"]
[Round "9"]
[White "DeArron_Fox"]
[Black "ItsCheckM8Mate"]
[Result "0-1"]
[WhiteElo "2464"]
[BlackElo "2377"]
[TimeControl "180+1"]
[EndTime "9:43:30 PDT"]
[Termination "ItsCheckM8Mate won by resignation"]

1. d4 {[%clk 0:03:00.9]} 1... Nf6 {[%clk 0:02:57.3]} 2. c4 {[%clk 0:03:00.9]}
2... c5 {[%clk 0:02:55.6]} 3. d5 {[%clk 0:03:01]} 3... b5 {[%clk 0:02:54]} 4.
cxb5 {[%clk 0:03:01.9]} 4... a6 {[%clk 0:02:54]} 5. bxa6 {[%clk 0:03:01.9]} 5...
Bxa6 {[%clk 0:02:54.9]} 6. Nc3 {[%clk 0:03:01.2]} 6... d6 {[%clk 0:02:53.1]} 7.
e4 {[%clk 0:03:01.6]} 7... g6 {[%clk 0:02:52.9]} 8. Nf3 {[%clk 0:03:00.5]} 8...
Bxf1 {[%clk 0:02:52.2]} 9. Kxf1 {[%clk 0:03:01.4]} 9... Bg7 {[%clk 0:02:50.8]}
10. g3 {[%clk 0:03:01.7]} 10... O-O {[%clk 0:02:50.8]} 11. Kg2 {[%clk
0:03:02.3]} 11... Nbd7 {[%clk 0:02:46.7]} 12. a4 {[%clk 0:03:02.2]} 12... Qb6
{[%clk 0:02:27.6]} 13. Qc2 {[%clk 0:03:00.3]} 13... Rfb8 {[%clk 0:02:25.2]} 14.
Nb5 {[%clk 0:02:40.7]} 14... Ne8 {[%clk 0:02:22.8]} 15. Nd2 {[%clk 0:02:39.8]}
15... Nc7 {[%clk 0:02:12.1]} 16. Nc4 {[%clk 0:02:38.9]} 16... Qb7 {[%clk
0:02:12.1]} 17. Nxc7 {[%clk 0:02:35.5]} 17... Qxc7 {[%clk 0:02:11.5]} 18. Ra3
{[%clk 0:02:06.4]} 18... Ne5 {[%clk 0:02:00.1]} 19. b3 {[%clk 0:01:57.9]} 19...
Nxc4 {[%clk 0:01:57.2]} 20. Qxc4 {[%clk 0:01:55.4]} 20... Rb4 {[%clk 0:01:55.4]}
21. Qc2 {[%clk 0:01:55.2]} 21... Qc8 {[%clk 0:01:36.6]} 22. Bd2 {[%clk
0:01:52.2]} 22... Rb7 {[%clk 0:01:32.1]} 23. a5 {[%clk 0:01:09.6]} 23... Ra6
{[%clk 0:01:31.5]} 24. Qc4 {[%clk 0:01:08.1]} 24... Rb8 {[%clk 0:01:25.8]} 25.
Rb1 {[%clk 0:00:37.3]} 25... f5 {[%clk 0:01:08.5]} 26. b4 {[%clk 0:00:17.1]}
26... cxb4 {[%clk 0:01:00.8]} 27. Qxc8+ {[%clk 0:00:16.9]} 27... Rxc8 {[%clk
0:01:01.7]} 28. Rxb4 {[%clk 0:00:17.2]} 28... Rc5 {[%clk 0:00:52.8]} 29. Rb6
{[%clk 0:00:07.9]} 29... Rxb6 {[%clk 0:00:47.4]} 30. axb6 {[%clk 0:00:08.8]}
30... Rb5 {[%clk 0:00:47.9]} 31. Be3 {[%clk 0:00:08.5]} 31... fxe4 {[%clk
0:00:41.7]} 32. Ra7 {[%clk 0:00:08]} 32... Kf7 {[%clk 0:00:38.4]} 33. h4 {[%clk
0:00:03.8]} 33... Rxd5 {[%clk 0:00:33.3]} 34. g4 {[%clk 0:00:01.9]} 34... Rb5
{[%clk 0:00:31.8]} 35. Kg3 {[%clk 0:00:01.7]} 35... Be5+ {[%clk 0:00:31]} 36.
Kg2 {[%clk 0:00:02.3]} 36... d5 {[%clk 0:00:29.5]} 37. h5 {[%clk 0:00:03]} 37...
d4 {[%clk 0:00:26]} 38. Bg5 {[%clk 0:00:03.6]} 38... Bf6 {[%clk 0:00:25.6]} 39.
Bxf6 {[%clk 0:00:01.9]} 39... Kxf6 {[%clk 0:00:25.6]} 40. hxg6 {[%clk
0:00:02.2]} 40... hxg6 {[%clk 0:00:26]} 41. b7 {[%clk 0:00:02.8]} 41... d3
{[%clk 0:00:21.9]} 42. Kf1 {[%clk 0:00:03]} 42... Rb1+ {[%clk 0:00:21.3]} 43.
Kg2 {[%clk 0:00:02.8]} 43... d2 {[%clk 0:00:21.2]} 44. Ra1 {[%clk 0:00:03.4]}
44... Rxb7 {[%clk 0:00:19.3]} 45. Rd1 {[%clk 0:00:03.5]} 45... Rb2 {[%clk
0:00:17.7]} 46. Kf1 {[%clk 0:00:03.5]} 46... Ke5 {[%clk 0:00:17.8]} 47. Ke2
{[%clk 0:00:04.4]} 47... Kf4 {[%clk 0:00:18]} 48. Rg1 {[%clk 0:00:02.5]} 48...
d1=Q+ {[%clk 0:00:16.9]} 49. Kxd1 {[%clk 0:00:03.1]} 49... Rb1+ {[%clk
0:00:17.3]} 0-1